fUSD/lending_fUSD_20250609
["ID","MTS","AMOUNT","RATE_DAILY","PERIOD"]
[365106123,1749467441497,-480.0,0.00021917,2]
[365106125,1749467441507,-1413.78,0.00021917,2]
[365106127,1749467441516,-480.0,0.00021917,2]
[365106129,1749467441526,-465.76145024,0.00021917,2]
[365106132,1749467441535,-460.0,0.00021917,2]
[365106134,1749467441545,-460.0,0.00021917,2]
[365106136,1749467441554,-460.0,0.00021917,2]
[365106138,1749467441563,-767.19,0.00021917,2]
[365106140,1749467441573,-480.0,0.00021917,2]
[365106142,1749467441582,-460.0,0.00021917,2]
[365106144,1749467441592,-1260.16,0.00021917,2]
[365106146,1749467441601,-480.0,0.00021917,2]
[365106148,1749467441610,-460.0,0.00021917,2]
[365106150,1749467441620,-809.2,0.00021917,2]
[365106152,1749467441629,-480.0,0.00021917,2]
[365106154,1749467441639,-480.0,0.00021917,2]
[365106156,1749467441648,-460.0,0.00021917,2]
[365106158,1749467441658,-480.0,0.00021917,2]
[365106160,1749467441667,-571.84,0.00021917,2]
[365106162,1749467441676,-460.0,0.00021917,2]
[365106164,1749467441686,-461.42647871,0.00021917,2]
[365106166,1749467441696,-480.0,0.00021917,2]
[365106168,1749467441705,-488.5673688,0.00021917,2]
[365106170,1749467441715,-460.0,0.00021917,2]
[365106172,1749467441724,-460.0,0.00021917,2]
[365106174,1749467441733,-572.83,0.00021917,2]
[365106176,1749467441742,-460.0,0.00021917,2]
[365106178,1749467441751,-480.0,0.00021917,2]
[365106180,1749467441761,-589.84531277,0.00021917,2]
[365106182,1749467441770,-187.1736004,0.00021917,2]
[365106184,1749467441779,-480.0,0.00021917,2]
[365106186,1749467441789,-480.0,0.00021917,2]
[365106188,1749467441798,-488.76813107,0.00021917,2]
[365106190,1749467441807,-480.0,0.00021917,2]
[365106192,1749467441817,-889.69,0.00021917,2]
[365106194,1749467441827,-529.72,0.00021917,2]
[365106196,1749467441836,-480.0,0.00021917,2]
[365106198,1749467441845,-480.0,0.00021917,2]
[365106200,1749467441854,-400.0,0.00021917,2]
[365106202,1749467441863,-480.0,0.00021917,2]
[365106204,1749467441872,-460.0,0.00021917,2]
[365106205,1749467441883,-1751.09,0.00021917,2]
[365106207,1749467441892,-460.0,0.00021917,2]
[365106209,1749467441901,-714.09,0.00021917,2]
[365106211,1749467441911,-480.0,0.00021917,2]
[365106213,1749467441920,-603.4,0.00021917,2]
[365106215,1749467441929,-460.0,0.00021917,2]
[365106217,1749467441939,-463.1177224,0.00021917,2]
[365106220,1749467441949,-420.0,0.00021917,2]
[365106222,1749467441958,-487.22877357,0.00021917,2]
[365106224,1749467441968,-480.0,0.00021917,2]
[365106225,1749467441977,-480.0,0.00021917,2]
[365106227,1749467441986,-486.50055348,0.00021917,2]
[365106229,1749467441996,-993.71,0.00021917,2]
[365106231,1749467442006,-480.0,0.00021917,2]
[365106233,1749467442015,-480.0,0.00021917,2]
[365106235,1749467442025,-480.0,0.00021917,2]
[365106237,1749467442034,-463.45396035,0.00021917,2]
[365106239,1749467442044,-480.0,0.00021917,2]
[365106241,1749467442054,-489.21583851,0.00021917,2]
[365106243,1749467442063,-585.01511144,0.00021917,2]
[365106245,1749467442073,-480.0,0.00021917,2]
[365106247,1749467442082,-480.0,0.00021917,2]
[365106249,1749467442092,-480.0,0.00021917,2]
[365106251,1749467442102,-1195.03,0.00021917,2]
[365106253,1749467442112,-480.0,0.00021917,2]
[365106255,1749467442121,-480.0,0.00021917,2]
[365106257,1749467442131,-1015.33,0.00021917,2]
[365106259,1749467442140,-480.0,0.00021917,2]
[365106261,1749467442150,-429.00620201,0.00021917,2]
[365106263,1749467442165,-480.0,0.00021917,2]
[365106265,1749467442175,-480.0,0.00021917,2]
[365106267,1749467442185,-460.0,0.00021917,2]
[365106269,1749467442195,-726.34,0.00021917,2]
[365106271,1749467442206,-460.0,0.00021917,2]
[365106273,1749467442215,-460.0,0.00021917,2]
[365106275,1749467442225,-480.0,0.00021917,2]
[365106277,1749467442235,-460.0,0.00021917,2]
[365106280,1749467442246,-483.51,0.00021917,2]
[365106282,1749467442257,-516.33060706,0.00021917,2]
[365106284,1749467442267,-460.0,0.00021917,2]
[365106286,1749467442276,-460.0,0.00021917,2]
[365106288,1749467442285,-572.87,0.00021917,2]
[365106290,1749467442295,-460.0,0.00021917,2]
[365106292,1749467442304,-480.0,0.00021917,2]
[365106294,1749467442313,-500.0,0.00021917,2]
[365106296,1749467442323,-1308.47,0.00021917,2]
[365106298,1749467442333,-380.0,0.00021917,2]
[365106300,1749467442342,-768.64,0.00021917,2]
[365106301,1749467442351,-460.0,0.00021917,2]
[365106304,1749467442361,-460.0,0.00021917,2]
[365106306,1749467442371,-480.0,0.00021917,2]
[365106308,1749467442380,-2000.0,0.00021917,2]
[365106310,1749467442390,-460.0,0.00021917,2]
[365106312,1749467442400,-484.49,0.00021917,2]
[365106314,1749467442409,-480.0,0.00021917,2]
[365106316,1749467442419,-480.0,0.00021917,2]
[365106318,1749467442429,-460.0,0.00021917,2]
[365106320,1749467442439,-480.0,0.00021917,2]
[365106322,1749467442448,-480.0,0.00021917,2]
[365106324,1749467442458,-480.0,0.00021917,2]
[365106326,1749467442467,-500.0,0.00021917,2]
[365106328,1749467442477,-480.0,0.00021917,2]
[365106330,1749467442487,-360.0,0.00021917,2]
[365106331,1749467442497,-509.09,0.00021917,2]
[365106334,1749467442506,-480.0,0.00021917,2]
[365106336,1749467442516,-460.0,0.00021917,2]
[365106338,1749467442526,-466.5,0.00021917,2]
[365106340,1749467442535,-480.0,0.00021917,2]
[365106342,1749467442544,-480.0,0.00021917,2]
[365106376,1749467442553,-460.0,0.00021917,2]
[365106381,1749467442881,-480.0,0.00021917,2]
[365106383,1749467442890,-460.0,0.00021917,2]
[365106385,1749467442900,-460.0,0.00021917,2]
[365106387,1749467442916,-1082.46,0.00021917,2]
[365106389,1749467442928,-480.0,0.00021917,2]
[365106391,1749467442939,-460.0,0.00021917,2]
[365106393,1749467442949,-1180.2,0.00021917,2]
[365106395,1749467442958,-500.0,0.00021917,2]
[365106397,1749467442967,-480.0,0.00021917,2]
[365106399,1749467442977,-613.24,0.00021917,2]
[365106401,1749467442986,-500.0,0.00021917,2]
[365106403,1749467442996,-505.65891518,0.00021917,2]
[365106405,1749467443005,-480.0,0.00021917,2]
[365106407,1749467443014,-553.03,0.00021917,2]
[365106409,1749467443024,-508.09758278,0.00021917,2]
[365106411,1749467443034,-303.82156248,0.00021917,2]
[365106413,1749467443043,-460.0,0.00021917,2]
[365106415,1749467443052,-460.0,0.00021917,2]
[365106417,1749467443062,-480.0,0.00021917,2]
[365106419,1749467443071,-480.0,0.00021917,2]
[365106421,1749467443080,-460.0,0.00021917,2]
[365106424,1749467443090,-460.0,0.00021917,2]
[365106427,1749467443099,-1162.79,0.00021917,2]
[365106430,1749467443108,-480.0,0.00021917,2]
[365106433,1749467443119,-500.0,0.00021917,2]
[365106436,1749467443128,-480.0,0.00021917,2]
[365106438,1749467443138,-480.0,0.00021917,2]
[365106440,1749467443147,-460.0,0.00021917,2]
[365106442,1749467443161,-460.0,0.00021917,2]
[365106444,1749467443171,-480.0,0.00021917,2]
[365106446,1749467443180,-460.0,0.00021917,2]
[365106448,1749467443189,-480.0,0.00021917,2]
[365106450,1749467443200,-462.60653528,0.00021917,2]
[365106452,1749467443209,-498.96611695,0.00021917,2]
[365106454,1749467443219,-1574.4,0.00021917,2]
[365106456,1749467443229,-422.86949462,0.00021917,2]
[365106458,1749467443238,-1404.78,0.00021917,2]
[365106461,1749467443248,-480.0,0.00021917,2]
[365106463,1749467443257,-480.0,0.00021917,2]
[365106465,1749467443267,-480.0,0.00021917,2]
[365106467,1749467443277,-553.5,0.00021917,2]
[365106469,1749467443286,-595.47,0.00021917,2]
[365106471,1749467443295,-608.86860076,0.00021917,2]
[365106473,1749467443305,-460.0,0.00021917,2]
[365106474,1749467443316,-526.08178114,0.00021917,2]
[365106476,1749467443325,-480.0,0.00021917,2]
[365106478,1749467443335,-460.0,0.00021917,2]
[365106481,1749467443354,-480.0,0.00021917,2]
[365106483,1749467443369,-480.0,0.00021917,2]
[365106486,1749467443380,-480.0,0.00021917,2]
[365106487,1749467443390,-393.03936572,0.00021917,2]
[365106488,1749467443401,-480.0,0.00021917,2]
[365106489,1749467443411,-508.34975607,0.00021917,2]
[365106490,1749467443421,-460.0,0.00021917,2]
[365106491,1749467443431,-1368.39,0.00021917,2]
[365106492,1749467443442,-480.0,0.00021917,2]
[365106493,1749467443452,-480.0,0.00021917,2]
[365106494,1749467443463,-480.0,0.00021917,2]
[365106495,1749467443474,-460.0,0.00021917,2]
[365106496,1749467443485,-480.0,0.00021917,2]
[365106497,1749467443495,-480.0,0.00021917,2]
[365106499,1749467443505,-236.6815325,0.00021917,2]
[365106501,1749467443516,-480.0,0.00021917,2]
[365106503,1749467443527,-480.0,0.00021917,2]
[365106505,1749467443538,-672.49,0.00021917,2]
[365106507,1749467443548,-480.0,0.00021917,2]
[365106509,1749467443559,-592.83896231,0.00021917,2]
[365106511,1749467443569,-460.0,0.00021917,2]
[365106513,1749467443580,-484.35,0.00021917,2]
[365106515,1749467443591,-480.0,0.00021917,2]
[365106517,1749467443601,-480.0,0.00021917,2]
[365106520,1749467443612,-750.53,0.00021917,2]
[365106522,1749467443627,-480.0,0.00021917,2]
[365106524,1749467443638,-528.79012284,0.00021917,2]
[365106526,1749467443648,-683.08,0.00021917,2]
[365106528,1749467443658,-480.0,0.00021917,2]
[365106530,1749467443668,-480.0,0.00021917,2]
[365106532,1749467443679,-678.54,0.00021917,2]
[365106534,1749467443688,-480.0,0.00021917,2]
[365106536,1749467443698,-480.0,0.00021917,2]
[365106538,1749467443708,-480.0,0.00021917,2]
[365106540,1749467443718,-516.27,0.00021917,2]
[365106542,1749467443727,-618.68,0.00021917,2]
[365106544,1749467443738,-240.0576283,0.00021917,2]
[365106546,1749467443748,-480.0,0.00021917,2]
[365106548,1749467443758,-480.0,0.00021917,2]
[365106551,1749467443768,-1000.0,0.00021917,2]
[365106554,1749467443779,-480.0,0.00021917,2]
[365106557,1749467443788,-1596.5,0.00021917,2]
[365106559,1749467443798,-544.58661117,0.00021917,2]
[365106561,1749467443808,-480.0,0.00021917,2]
[365106564,1749467443818,-480.0,0.00021917,2]
[365106567,1749467443828,-963.2,0.00021917,2]
[365106571,1749467443838,-751.13,0.00021917,2]
[365106574,1749467443848,-480.0,0.00021917,2]
[365106577,1749467443858,-480.0,0.00021917,2]
[365106580,1749467443868,-480.0,0.00021917,2]
[365106581,1749467443878,-480.0,0.00021917,2]
[365106582,1749467443888,-480.0,0.00021917,2]
[365106583,1749467443897,-701.92,0.00021917,2]
[365106584,1749467443907,-480.0,0.00021917,2]
[365106585,1749467443917,-480.0,0.00021917,2]
[365106586,1749467443927,-480.0,0.00021917,2]
[365106587,1749467443937,-480.0,0.00021917,2]
[365106588,1749467443947,-480.0,0.00021917,2]
[365106589,1749467443956,-571.45,0.00021917,2]
[365106590,1749467443967,-480.0,0.00021917,2]
[365106591,1749467443976,-985.49,0.00021917,2]
[365106592,1749467443986,-848.03,0.00021917,2]
[365106593,1749467443996,-460.60500174,0.00021917,2]
[365106594,1749467444007,-460.0,0.00021917,2]
[365106595,1749467444018,-812.41,0.00021917,2]
[365106596,1749467444028,-480.0,0.00021917,2]
[365106597,1749467444038,-480.0,0.00021917,2]
[365106598,1749467444048,-460.0,0.00021917,2]
[365106599,1749467444057,-480.0,0.00021917,2]
[365106600,1749467444068,-480.0,0.00021917,2]
[365106601,1749467444078,-460.0,0.00021917,2]
[365106602,1749467444088,-460.0,0.00021917,2]
[365106603,1749467444099,-460.0,0.00021917,2]
[365106604,1749467444108,-480.0,0.00021917,2]
[365106605,1749467444118,-460.0,0.00021917,2]
[365106606,1749467444127,-460.0,0.00021917,2]
[365106607,1749467444137,-460.0,0.00021917,2]
[365106608,1749467444147,-694.25,0.00021917,2]
[365106609,1749467444159,-460.0,0.00021917,2]
[365106610,1749467444169,-593.74936767,0.00021917,2]
[365106611,1749467444179,-607.16,0.00021917,2]
[365106612,1749467444188,-460.0,0.00021917,2]
[365106613,1749467444199,-460.0,0.00021917,2]
[365106614,1749467444209,-536.45555795,0.00021917,2]
[365106615,1749467444219,-1593.32,0.00021917,2]
[365106616,1749467444228,-464.70704992,0.00021917,2]
[365106617,1749467444239,-480.0,0.00021917,2]
[365106618,1749467444249,-480.0,0.00021917,2]
[365106619,1749467444259,-460.0,0.00021917,2]
[365106620,1749467444269,-483.65729563,0.00021917,2]
[365106621,1749467444278,-460.0,0.00021917,2]
[365106622,1749467444289,-480.0,0.00021917,2]
[365106623,1749467444298,-428.75287867,0.00021917,2]
[365106624,1749467444309,-929.53,0.00021917,2]
[365106625,1749467444318,-460.0,0.00021917,2]
[365106626,1749467444329,-480.0,0.00021917,2]
[365106627,1749467444339,-422.90385533,0.00021917,2]
[365106628,1749467444349,-435.81719592,0.00021917,2]
[365106629,1749467444359,-480.0,0.00021917,2]
[365106630,1749467444371,-460.0,0.00021917,2]
[365106631,1749467444382,-460.0,0.00021917,2]
[365106632,1749467444392,-480.0,0.00021917,2]
[365106633,1749467444402,-460.0,0.00021917,2]
[365106634,1749467444411,-460.0,0.00021917,2]
[365106635,1749467444422,-460.0,0.00021917,2]
[365106636,1749467444432,-480.0,0.00021917,2]
[365106637,1749467444441,-480.0,0.00021917,2]
[365106638,1749467444451,-480.0,0.00021917,2]
[365106639,1749467444460,-460.0,0.00021917,2]
[365106640,1749467444469,-177.70030514,0.00021917,2]
[365106641,1749467444479,-480.0,0.00021917,2]
[365106642,1749467444489,-480.0,0.00021917,2]
[365106643,1749467444498,-460.0,0.00021917,2]
[365106644,1749467444509,-465.87944053,0.00021917,2]
[365106645,1749467444519,-480.0,0.00021917,2]
[365106646,1749467444528,-435.50486866,0.00021917,2]
[365106647,1749467444538,-778.0,0.00021917,2]
[365106648,1749467444547,-775.36,0.00021917,2]
[365106649,1749467444557,-463.77463279,0.00021917,2]
[365106650,1749467444566,-480.0,0.00021917,2]
[365106651,1749467444576,-480.0,0.00021917,2]
[365106652,1749467444586,-463.88917526,0.00021917,2]
[365106653,1749467444597,-460.0,0.00021917,2]
[365106654,1749467444606,-480.0,0.00021917,2]
[365106655,1749467444616,-465.66737289,0.00021917,2]
[365106656,1749467444626,-480.0,0.00021917,2]
[365106657,1749467444635,-480.0,0.00021917,2]
[365106658,1749467444644,-460.0,0.00021917,2]
[365106659,1749467444655,-525.31,0.00021917,2]
[365106660,1749467444665,-914.16,0.00021917,2]
[365106661,1749467444674,-500.0,0.00021917,2]
[365106662,1749467444683,-500.0,0.00021917,2]
[365106663,1749467444693,-480.0,0.00021917,2]
[365106664,1749467444702,-462.95945728,0.00021917,2]
[365106665,1749467444713,-430.62906499,0.00021917,2]
[365106666,1749467444723,-480.0,0.00021917,2]
[365106667,1749467444732,-480.0,0.00021917,2]
[365106668,1749467444742,-665.27,0.00021917,2]
[365106669,1749467444753,-480.0,0.00021917,2]
[365106670,1749467444763,-460.0,0.00021917,2]
[365106671,1749467444772,-460.0,0.00021917,2]
[365106672,1749467444782,-746.05,0.00021917,2]
[365106673,1749467444791,-460.0,0.00021917,2]
[365106674,1749467444801,-820.23,0.00021917,2]
[365106675,1749467444811,-2259.36,0.00021917,2]
[365106676,1749467444821,-466.08999767,0.00021917,2]
[365106677,1749467444832,-491.15841506,0.00021917,2]
[365106678,1749467444842,-472.35959028,0.00021917,2]
[365106679,1749467444851,-480.0,0.00021917,2]
[365106680,1749467444861,-559.49456489,0.00021917,2]
[365106681,1749467444872,-460.0,0.00021917,2]
[365106682,1749467444882,-1295.49,0.00021917,2]
[365106683,1749467444891,-480.0,0.00021917,2]
[365106684,1749467444901,-423.34552857,0.00021917,2]
[365106685,1749467444911,-178.21999394,0.00021917,2]
[365106686,1749467444921,-460.0,0.00021917,2]
[365106687,1749467444931,-405.381189,0.00021917,2]
[365106688,1749467444941,-466.2579005,0.00021917,2]
[365106689,1749467444951,-480.0,0.00021917,2]
[365106690,1749467444961,-1732.0,0.00021917,2]
[365106691,1749467444970,-460.0,0.00021917,2]
[365106692,1749467444980,-468.7053545,0.00021917,2]
[365106693,1749467444990,-480.0,0.00021917,2]
[365106694,1749467445000,-990.87,0.00021917,2]
[365106695,1749467445010,-1848.92,0.00021917,2]
[365106696,1749467445020,-480.0,0.00021917,2]
[365106697,1749467445030,-464.15261557,0.00021917,2]
[365106698,1749467445042,-586.59,0.00021917,2]
[365106699,1749467445052,-460.0,0.00021917,2]
[365106700,1749467445061,-1356.93,0.00021917,2]
[365106701,1749467445071,-465.10661418,0.00021917,2]
[365106702,1749467445080,-460.0,0.00021917,2]
[365106703,1749467445090,-460.0,0.00021917,2]
[365106704,1749467445100,-1000.0,0.00021917,2]
[365106705,1749467445109,-3717.07,0.00021917,2]
[365106706,1749467445119,-480.0,0.00021917,2]
[365106707,1749467445129,-772.28,0.00021917,2]
[365106708,1749467445139,-460.0,0.00021917,2]
[365106709,1749467445148,-480.0,0.00021917,2]
[365106710,1749467445160,-480.0,0.00021917,2]
[365106711,1749467445170,-480.0,0.00021917,2]
[365106712,1749467445180,-473.02505578,0.00021917,2]
[365106713,1749467445190,-460.0,0.00021917,2]
[365106714,1749467445201,-480.0,0.00021917,2]
[365106715,1749467445211,-480.0,0.00021917,2]
[365106716,1749467445221,-802.39,0.00021917,2]
[365106717,1749467445231,-460.0,0.00021917,2]
[365106718,1749467445242,-480.0,0.00021917,2]
[365106719,1749467445251,-583.65,0.00021917,2]
[365106720,1749467445261,-460.0,0.00021917,2]
[365106721,1749467445272,-480.0,0.00021917,2]
[365106722,1749467445282,-425.51469064,0.00021917,2]
[365106723,1749467445292,-575.9,0.00021917,2]
[365106724,1749467445302,-480.0,0.00021917,2]
[365106725,1749467445311,-570.51,0.00021917,2]
[365106726,1749467445321,-3228.84,0.00021917,2]
[365106727,1749467445332,-480.0,0.00021917,2]
[365106728,1749467445342,-432.95803496,0.00021917,2]
[365106729,1749467445434,-784.8,0.00021917,2]
[365106730,1749467445445,-547.07,0.00021917,2]
[365106731,1749467445455,-763.27,0.00021917,2]
[365106732,1749467445467,-428.72802125,0.00021917,2]
[365106733,1749467445477,-480.0,0.00021917,2]
[365106734,1749467445487,-480.0,0.00021917,2]
[365106735,1749467445495,-480.0,0.00021917,2]
[365106736,1749467445503,-1534.26,0.00021917,2]
[365106737,1749467445512,-475.17,0.00021917,2]
[365106738,1749467445521,-420.0,0.00021917,2]
[365106739,1749467445530,-460.0,0.00021917,2]
[365106740,1749467445540,-460.0,0.00021917,2]
[365106741,1749467445548,-773.54,0.00021917,2]
[365106742,1749467445557,-242.69197676,0.00021917,2]
[365106743,1749467445566,-480.0,0.00021917,2]
[365106744,1749467445575,-502.44,0.00021917,2]
[365106745,1749467445584,-460.0,0.00021917,2]
[365106746,1749467445594,-460.0,0.00021917,2]
[365106747,1749467445604,-460.0,0.00021917,2]
[365106748,1749467445613,-460.0,0.00021917,2]
[365106749,1749467445623,-1170.03,0.00021917,2]
[365106750,1749467445633,-480.0,0.00021917,2]
[365106751,1749467445642,-460.0,0.00021917,2]
[365106752,1749467445651,-480.0,0.00021917,2]
[365106753,1749467445662,-460.0,0.00021917,2]
[365106754,1749467445671,-3012.44,0.00021917,2]
[365106755,1749467445682,-480.0,0.00021917,2]
[365106756,1749467445690,-480.0,0.00021917,2]
[365106757,1749467445700,-512.4,0.00021917,2]
[365106758,1749467445709,-480.0,0.00021917,2]
[365106759,1749467445717,-480.0,0.00021917,2]
[365106760,1749467445726,-460.0,0.00021917,2]
[365106761,1749467445734,-1442.87,0.00021917,2]
[365106762,1749467445743,-1519.91,0.00021917,2]
[365106763,1749467445752,-480.0,0.00021917,2]
[365106764,1749467445762,-460.0,0.00021917,2]
[365106765,1749467445770,-460.0,0.00021917,2]
[365106766,1749467445779,-480.0,0.00021917,2]
[365106767,1749467445788,-460.0,0.00021917,2]
[365106768,1749467445797,-334.38794851,0.00021917,2]
[365106769,1749467445807,-517.11921558,0.00021917,2]
[365106770,1749467445816,-891.08,0.00021917,2]
[365106771,1749467445825,-480.0,0.00021917,2]
[365106772,1749467445835,-480.0,0.00021917,2]
[365106773,1749467445846,-480.0,0.00021917,2]
[365106774,1749467445857,-480.0,0.00021917,2]
[365106775,1749467445867,-460.0,0.00021917,2]
[365106776,1749467445876,-460.0,0.00021917,2]
[365106777,1749467445886,-460.0,0.00021917,2]
[365106778,1749467445895,-480.0,0.00021917,2]
[365106779,1749467445904,-460.0,0.00021917,2]
[365106780,1749467445913,-460.0,0.00021917,2]
[365106781,1749467445923,-1398.24,0.00021917,2]
[365106782,1749467445932,-1678.45,0.00021917,2]
[365106783,1749467445942,-1165.26,0.00021917,2]
[365106784,1749467445951,-480.0,0.00021917,2]
[365106785,1749467445961,-2319.82,0.00021917,2]
[365106786,1749467445972,-2517.22,0.00021917,2]
[365106787,1749467445981,-460.0,0.00021917,2]
[365106788,1749467445991,-862.85,0.00021917,2]
[365106789,1749467446000,-22947.35,0.00021917,2]
[365106790,1749467446010,-480.0,0.00021917,2]
[365106791,1749467446019,-461.19684204,0.00021917,2]
[365106792,1749467446028,-463.15126092,0.00021917,2]
[365106793,1749467446037,-1731.91,0.00021917,2]
[365106794,1749467446046,-506.07,0.00021917,2]
[365106795,1749467446054,-534.36,0.00021917,2]
[365106796,1749467446063,-460.0,0.00021917,2]
[365106798,1749467446071,-945.9,0.00021917,2]
[365106799,1749467446080,-460.0,0.00021917,2]
[365106800,1749467446088,-460.0,0.00021917,2]
[365106801,1749467446097,-460.0,0.00021917,2]
[365106802,1749467446106,-3651.45,0.00021917,2]
[365106803,1749467446115,-460.0,0.00021917,2]
[365106804,1749467446124,-480.0,0.00021917,2]
[365106805,1749467446133,-1014.19,0.00021917,2]
[365106806,1749467446142,-460.0,0.00021917,2]
[365106807,1749467446151,-460.0,0.00021917,2]
[365106808,1749467446164,-480.0,0.00021917,2]
[365106809,1749467446174,-460.0,0.00021917,2]
[365106810,1749467446183,-480.0,0.00021917,2]
[365106811,1749467446193,-1143.4,0.00021917,2]
[365106812,1749467446203,-460.0,0.00021917,2]
[365106813,1749467446213,-3119.95,0.00021917,2]
[365106814,1749467446223,-480.0,0.00021917,2]
[365106815,1749467446232,-522.96,0.00021917,2]
[365106816,1749467446243,-460.0,0.00021917,2]
[365106817,1749467446253,-460.0,0.00021917,2]
[365106818,1749467446263,-500.0,0.00021917,2]
[365106819,1749467446272,-1000.0,0.00021917,2]
[365106820,1749467446282,-475.04,0.00021917,2]
[365106821,1749467446291,-1139.15,0.00021917,2]
[365106822,1749467446301,-460.0,0.00021917,2]
[365106823,1749467446310,-554.28,0.00021917,2]
[365106824,1749467446320,-1822.46,0.00021917,2]
[365106825,1749467446329,-797.93,0.00021917,2]
[365106826,1749467446339,-1412.46,0.00021917,2]
[365106827,1749467446349,-472.70116921,0.00021917,2]
[365106828,1749467446359,-480.0,0.00021917,2]
[365106829,1749467446370,-1207.75,0.00021917,2]
[365106830,1749467446379,-809.74,0.00021917,2]
[365106831,1749467446389,-460.0,0.00021917,2]
[365106832,1749467446399,-794.47,0.00021917,2]
[365106833,1749467446409,-460.0,0.00021917,2]
[365106834,1749467446419,-460.0,0.00021917,2]
[365106835,1749467446429,-480.0,0.00021917,2]
[365106836,1749467446439,-755.36,0.00021917,2]
[365106837,1749467446449,-4431.71,0.00021917,2]
[365106838,1749467446458,-500.0,0.00021917,2]
[365106839,1749467446467,-500.0,0.00021917,2]
[365106840,1749467446476,-2400.49,0.00021917,2]
[365106841,1749467446485,-1225.84,0.00021917,2]
[365106842,1749467446494,-480.0,0.00021917,2]
[365106843,1749467446503,-480.0,0.00021917,2]
[365106844,1749467446512,-472.07201631,0.00021917,2]
[365106845,1749467446521,-480.0,0.00021917,2]
[365106846,1749467446531,-2389.33,0.00021917,2]
[365106847,1749467446541,-460.0,0.00021917,2]
[365106848,1749467446552,-480.0,0.00021917,2]
[365106849,1749467446562,-607.32074244,0.00021917,2]
[365106850,1749467446572,-2500.85,0.00021917,2]
[365106851,1749467446581,-480.0,0.00021917,2]
[365106852,1749467446591,-8933.26,0.00021917,2]
[365106853,1749467446601,-480.0,0.00021917,2]
[365106854,1749467446611,-480.0,0.00021917,2]
[365106855,1749467446621,-1040.21,0.00021917,2]
[365106856,1749467446630,-1072.67,0.00021917,2]
[365106857,1749467446639,-480.0,0.00021917,2]
[365106858,1749467446649,-460.0,0.00021917,2]
[365106859,1749467446658,-480.0,0.00021917,2]
[365106860,1749467446670,-673.54,0.00021917,2]
[365106861,1749467446679,-480.0,0.00021917,2]
[365106862,1749467446687,-520.82,0.00021917,2]
[365106863,1749467446697,-480.0,0.00021917,2]
[365106864,1749467446706,-850.95,0.00021917,2]
[365106865,1749467446715,-480.0,0.00021917,2]
[365106866,1749467446725,-460.0,0.00021917,2]
[365106867,1749467446735,-480.0,0.00021917,2]
[365106868,1749467446744,-460.0,0.00021917,2]
[365106869,1749467446753,-1107.88,0.00021917,2]
[365106870,1749467446762,-6752.31,0.00021917,2]
[365106871,1749467446772,-480.0,0.00021917,2]
[365106872,1749467446781,-480.0,0.00021917,2]
[365106873,1749467446790,-480.0,0.00021917,2]